Cogmind - Beta 15 @@@ ROGUE MODE // 2025.07.20 @ 04:23:45 Player: shapeshifter Result: Destroyed by G-50 Soldier with Heavy Laser Performance ------------- Evolutions (4) 2000 Regions Visited (6) 1200 Robots Destroyed (45) 225 Value Destroyed (1406) 1406 Prototype IDs (1) 20 Alien Tech Used (0) 0 Bonus (500) 500 TOTAL SCORE: 5351 Bonus ------- Entered DSFs 500 Cogmind --------- Core Integrity 0/850 Matter 24/300 Energy 100/100 System Corruption 17% Temperature Cool (9) Movement Core (700) Ox13 Location -6/Factory Parts ------- > --- POWER (2) -------- (None) > --- PROPULSION (4) --- (None) > --- UTILITY (6) ------ High-capacity Storage Unit > --- WEAPON (3) ------- (None) > --- INVENTORY (20) --- Improved Heat Sink Huge Storage Unit Compact Battery (200) Advanced ECM Suite Advanced ECM Suite Hardened Medium Armor Plating Lightning Gun Spread Laser Cooled Pulse Rifle Minigun High-powered Shotgun High-powered Shotgun Coil Gun Rocket Launcher Remote Datajack Peak State ------------ > --- POWER ------------ Nuclear Core > --- PROPULSION ------- Light Treads Light Treads Armored Treads Improved Medium Treads > --- UTILITY ---------- High-capacity Storage Unit Compact Matter Pod Advanced Sensor Array Improved Medium Armor Plating Improved Medium Armor Plating Improved Medium Armor Plating > --- WEAPON ----------- High-powered Shotgun Enhanced Autogun Flak Cannon > --- INVENTORY -------- Improved Heat Sink Disposable Heat Sink Huge Storage Unit Compact Battery Advanced ECM Suite Advanced ECM Suite Hardened Medium Armor Plating Scrap Shield Lightning Gun Lightning Gun Lightning Gun Spread Laser Cooled Pulse Rifle Minigun High-powered Shotgun High-powered Shotgun Coil Gun Rocket Launcher Remote Datajack [Rating: 50] Favorites ----------- Power Ion Engine Engine Ion Engine Power Core Nuclear Core Propulsion Light Treads Treads Light Treads Utility High-capacity Storage Unit Device Sensor Array Storage High-capacity Storage Unit Protection Improved Medium Armor Plating Weapon Assault Rifle Energy Gun Medium Laser Ballistic Gun Assault Rifle Ballistic Cannon Flak Cannon Launcher Rocket Launcher Build | -11 -10 -10 -8 -7 -7 -6 ------- Run | Yrd Mat Sub Mat Fac DSF Fac Slots Evolved 8 | . . . 4 2 . 2 Power 1 | . . . . . . 1 Propulsion 2 | . . . 1 1 . . Utility 4 | . . . 3 1 . . Weapon 1 | . . . . . . 1 Parts Attached 44 | 7 2 . 20 2 4 9 Power 5 | 1 . . 3 . 1 . Engine 4 | 1 . . 3 . . . Core 1 | . . . . . 1 . Reactor . | . . . . . . . Propulsion 8 | 2 . . 3 1 1 1 Treads 8 | 2 . . 3 1 1 1 Leg . | . . . . . . . Wheel . | . . . . . . . Hover . | . . . . . . . Flight . | . . . . . . . Utility 19 | 2 2 . 9 1 2 3 Device 5 | 1 1 . 2 . . 1 Storage 4 | 1 1 . 1 . 1 . Processor . | . . . . . . . Hackware . | . . . . . . . Protection 10 | . . . 6 1 1 2 Artifact . | . . . . . . . Weapon 12 | 2 . . 5 . . 5 Energy Gun 7 | 1 . . 4 . . 2 Energy Cannon . | . . . . . . . Ballistic Gun 3 | 1 . . . . . 2 Ballistic Cannon 1 | . . . 1 . . . Launcher 1 | . . . . . . 1 Special Weapon . | . . . . . . . Impact Weapon . | . . . . . . . Slashing Weapon . | . . . . . . . Piercing Weapon . | . . . . . . . Special Melee Weapon . | . . . . . . . Unidentified Prototypes 1 | . . . . . . 1 Parts Lost 28 | . 1 . 6 . 4 17 Power 4 | . . . 2 . 1 1 Propulsion 7 | . . . 2 . 1 4 Utility 12 | . 1 . 2 . 2 7 Weapon 5 | . . . . . . 5 Highest Loss Streak 16 | . 1 . 2 . 2 16 To Critical Strikes . | . . . . . . . Average Backups 14 | 3 9 18 16 16 17 15 Power 1 | . 1 3 1 . . . Propulsion 2 | 1 2 3 2 1 . . Utility 5 | . 2 7 8 8 7 6 Weapon 4 | . 3 5 3 7 9 8 Tool/Special . | . . . . . . . Unused Backups 25 | . 3 3 7 . . 12 Power 1 | . . . 1 . . . Propulsion 3 | . 2 . 1 . . . Utility 9 | . 1 1 2 . . 5 Weapon 11 | . . 2 3 . . 6 Tool/Special 1 | . . . . . . 1 Average Slot Usage (%) 96 | . 99 100 99 98 93 83 Engine 9 | . 14 14 8 7 2 . Core 1 | . . . . . 4 5 Treads 26 | . 28 28 26 30 29 21 Device 13 | . 13 14 17 15 9 5 Storage 12 | . 14 14 10 7 9 11 Protection 9 | . . . 16 21 21 18 Energy Gun 11 | . 14 14 15 7 7 1 Ballistic Gun 8 | . 14 14 . . . 10 Ballistic Cannon 2 | . . . 1 7 7 5 Peak Build Rating 50 | 7 9 10 32 32 37 50 Average Rating 20 | 5 7 9 25 31 32 41 On Entrance 17 | . 7 9 10 26 32 36 Naked Turns . | . . . . . . . Heaviest Build 92 | 15 50 50 61 70 79 92 Greatest Support 90 | 40 40 40 60 80 80 90 Greatest Overweight (x) 13 | . 1 1 1 . 1 13 Average Overweight (x) . | . . 1 . . . . Largest Inventory Capacity 20 | 8 20 20 20 20 20 20 Average Capacity 17 | 7 11 20 20 20 20 20 Most Carried 20 | 5 19 20 20 19 20 20 Average Carried 14 | 3 9 19 17 17 18 16 Final Capacity 20 | 8 20 20 20 20 20 20 Final Carried 20 | 4 19 20 19 19 17 15 Class Distribution -------------------- 84% | Mutant 15% | Tank Dominant Class ---------------- Mutant | -10/Materials Mutant | -10/Subcaves Mutant | -8/Materials Mutant | -7/Factory Mutant | -7/DSF Tank | -6/Factory Resources | -11 -10 -10 -8 -7 -7 -6 ----------- Run | Yrd Mat Sub Mat Fac DSF Fac Matter Collected 926 | 280 113 215 216 . 67 35 Remotely . | . . . . . . . Salvage Created 1387 | 38 224 35 944 . 111 35 Parts 85 | 6 14 . 49 . 13 3 Haulers Intercepted 1 | . . . 1 . . . Recyclers Shooed 2 | 1 1 . . . . . Parts Field Recycled . | . . . . . . . Retrieved Matter . | . . . . . . . Parts Self-Destructed . | . . . . . . . Prevented . | . . . . . . . Kills | -11 -10 -10 -8 -7 -7 -6 ------- Run | Yrd Mat Sub Mat Fac DSF Fac Combat Hostiles Destroyed 36 | . 4 1 21 . 8 2 Guns 25 | . 4 1 14 . 5 1 Cannons 5 | . . . 1 . 3 1 AOE 3 | . . . 3 . . . Classes Destroyed 12 | 1 3 1 4 . 3 . Builder 2 | . 1 . 1 . . . Tunneler 2 | 2 . . . . . . Hauler 1 | . . . 1 . . . Watcher 4 | . 2 . 2 . . . Swarmer 10 | . . . 8 . . 2 Cutter 3 | . . . . . 3 . Grunt 14 | . 4 . 10 . . . Sentry 2 | . . . 2 . . . Specialist 3 | . . . . . 3 . Hunter 1 | . . . 1 . . . Programmer 2 | . . . . . 2 . Subdweller 1 | . . 1 . . . . Best Kill Streak 4 | 1 4 1 4 . 3 2 Combat Bots Only 4 | . 3 1 4 . 3 2 Max Kills in Single Turn 3 | 1 1 1 3 . 1 1 Gunslinging . | . . . . . . . Exploded 3 | . . . 3 . . . Melee . | . . . . . . . Uniques/NPCs Destroyed . | . . . . . . . Combat | -11 -10 -10 -8 -7 -7 -6 -------- Run | Yrd Mat Sub Mat Fac DSF Fac Hostile Shots Fired 513 | . 32 12 127 . 113 229 Missed 156 | . 16 5 40 . 35 60 Hits 357 | . 16 7 87 . 78 169 Melee 5 | . . . . . 5 . Projectile 352 | . 16 7 87 . 73 169 AOE 2 | . . . . . 2 . Critical Strikes 15 | . . . 2 . 4 9 Damage Taken 5763 | . 202 146 1197 . 1366 2852 Core 1264 | . 24 21 121 . 238 860 Absorbed by Shields . | . . . . . . . Redirected to Shielding 309 | . . . 216 . 93 . Core Remaining (%) 81 | 100 . 82 78 . 66 . Volleys Fired 139 | 8 19 8 69 . 24 11 Largest 3 | 2 2 2 2 . 2 3 Hottest 120 | 70 70 70 120 . 102 110 Shots Fired 280 | 16 38 16 136 . 48 26 Gun 241 | 16 38 16 129 . 24 18 Cannon 38 | . . . 7 . 24 7 Launcher 1 | . . . . . . 1 Special . | . . . . . . . Kinetic 89 | 8 19 8 7 . 24 23 Thermal 69 | 8 19 8 10 . 24 . Explosive 1 | . . . . . . 1 Electromagnetic 121 | . . . 119 . . 2 Robot Hit Streak 11 | 1 8 3 11 . 7 8 Robot Miss Streak 13 | 3 3 1 12 . 8 13 Penetration Max . | . . . . . . . Secondary Targets 3 | . 1 . 2 . . . Max Gunslinging Chain 1 | . 1 . 1 . . . Shots Hit Robots 188 | 6 24 12 90 . 43 13 Core Hits 112 | 3 14 2 47 . 38 8 Critical Kills . | . . . . . . . Critical Parts Destroyed 1 | 1 . . . . . . Critical Strikes 7 | 1 2 1 3 . . . Burn 2 | . 2 . . . . . Destroy 2 | 1 . 1 . . . . Corrupt 3 | . . . 3 . . . Melee Attacks . | . . . . . . . Impact . | . . . . . . . Slashing . | . . . . . . . Piercing . | . . . . . . . Sneak Attacks . | . . . . . . . Combat Hostiles . | . . . . . . . Follow-up Attacks . | . . . . . . . Damage Inflicted 3460 | 85 338 145 1897 . 759 236 Guns 2431 | 85 312 145 1425 . 291 173 Cannons 648 | . . . 119 . 468 61 Explosions 323 | . . . 323 . . . Melee . | . . . . . . . Ramming 58 | . 26 . 30 . . 2 Kinetic 1106 | 72 161 94 119 . 468 192 Thermal 895 | 13 151 51 389 . 291 . Explosive . | . . . . . . . Electromagnetic 1401 | . . . 1359 . . 42 Impact . | . . . . . . . Slashing . | . . . . . . . Piercing . | . . . . . . . Highest Corruption 17 | . . . . . 3 17 Average Corruption 4 | . . . . . 2 7 Corruption Purged . | . . . . . . . Corruption Blocked . | . . . . . . . Effects 6 | . . . . . 2 4 Matter Fused 3 | . . . . . 1 2 Energy Discharges 1 | . . . . . . 1 Data Loss (minor) 2 | . . . . . 1 1 Overload Shots . | . . . . . . . Overflow Damage 15 | . . . 15 . . . Projectiles . | . . . . . . . Explosions 15 | . . . 15 . . . Melee . | . . . . . . . Knockbacks 16 | . . . 8 . 7 1 Impact 1 | . . . 1 . . . Kinetic 15 | . . . 7 . 7 1 Secondary . | . . . . . . . Self-Inflicted Damage 69 | . . . 41 . . 28 Shots 3 | . . . 2 . . 1 Rammed 9 | . 4 . 4 . . 1 Targets Rammed 9 | . 4 . 4 . . 1 Kicked . | . . . . . . . Crushed . | . . . . . . . Highest Temperature 199 | 27 144 . 199 . 11 66 Average Temperature 58 | 11 46 . 68 . 11 28 Received Heat Transfer 1320 | . 99 42 387 . 99 693 Siege Activations . | . . . . . . . Martial Activations . | . . . . . . . Shielding Activations . | . . . . . . . Robots Disrupted . | . . . . . . . Combat Hostiles . | . . . . . . . Robots Corrupted 3 | . . . 3 . . . Combat Hostiles 3 | . . . 3 . . . Parts Fried 11 | . . . 11 . . . Impact Corruptions . | . . . . . . . Robots Melted . | . . . . . . . Combat Hostiles . | . . . . . . . Parts Melted 1 | . 1 . . . . . Heat Transferred 1502 | 37 592 148 385 . 340 . Parts Sabotaged . | . . . . . . . Parts Stolen . | . . . . . . . Parts Stripped . | . . . . . . . Power Chain Reactions 5 | . . . 5 . . . Alert | -11 -10 -10 -8 -7 -7 -6 ------- Run | Yrd Mat Sub Mat Fac DSF Fac Maximum Alert Level 1 | . . . 1 . 1 . Low Security (%) 83 | 100 100 . 54 100 78 100 Level 1 16 | . . . 45 . 21 . Level 2 . | . . . . . . . Level 3 . | . . . . . . . Level 4 . | . . . . . . . Level 5 . | . . . . . . . High Security . | . . . . . . . Max Security . | . . . . . . . Sterilizations 1 | . . . . . 1 . Peak Influence 378 | 5 67 . 378 153 301 157 Initial 157 | . . . . 153 96 157 Average 91 | . 6 . 186 143 170 57 Influence Increases 1227 | 10 129 . 738 5 245 100 Destroy 0b10 Robot/C 700 | . 80 . 420 . 160 40 Destroy 0b10 Robot/NC 45 | 10 15 . 20 . . . Destroy Leader 170 | . 34 . 96 . 40 . Successful Hack 15 | . . . 5 5 . 5 Disable Machine 15 | . . . 15 . . . Destroy Structure 27 | . . . 17 . . 10 Lose Combat Pursuer 255 | . . . 165 . 45 45 Influence Decreases 1227 | 10 129 . 401 204 82 401 Entered New Map 370 | . . . . 184 42 144 Time Decay 736 | 10 119 . 341 20 . 246 Lost Part 121 | . 10 . 60 . 40 11 Squads Dispatched 13 | . 2 . 6 . 2 3 Investigation 4 | . 2 . 2 . . . Extermination 2 | . . . . . . 2 Reinforcement 7 | . . . 4 . 2 1 Assault . | . . . . . . . Garrison . | . . . . . . . Intercept . | . . . . . . . Searches Triggered . | . . . . . . . Construction Impeded 3 | . . . 2 . . 1 Haulers Reinforced . | . . . . . . . Active Scanning Responses . | . . . . . . . Cargo Convoy Interrupts . | . . . . . . . Stealth | -11 -10 -10 -8 -7 -7 -6 --------- Run | Yrd Mat Sub Mat Fac DSF Fac Distress Signals 7 | . . . 3 . . 4 Communications Jammed . | . . . . . . . Distress Signals . | . . . . . . . Times Spotted 69 | . 6 1 37 . 10 15 Peak Tracking Total 7 | . 3 1 5 . 3 7 Tactical Retreats 11 | . . . 5 . 3 3 Traps | -11 -10 -10 -8 -7 -7 -6 ------- Run | Yrd Mat Sub Mat Fac DSF Fac Traps Triggered 2 | . 1 . 1 . . . Indirectly . | . . . . . . . Trap Hack Attempts . | . . . . . . . Triggered . | . . . . . . . Disarmed . | . . . . . . . Reprogrammed . | . . . . . . . Reused . | . . . . . . . Traps Extracted . | . . . . . . . Installed . | . . . . . . . Triggered . | . . . . . . . Machines | -11 -10 -10 -8 -7 -7 -6 ---------- Run | Yrd Mat Sub Mat Fac DSF Fac Machines Disabled 1 | . . . 1 . . . Max in Single Turn 1 | . . . 1 . . . Machines Repaired . | . . . . . . . Machines Dismantled . | . . . . . . . Machines Sabotaged . | . . . . . . . Overloaded Fab Kills . | . . . . . . . Hacking | -11 -10 -10 -8 -7 -7 -6 --------- Run | Yrd Mat Sub Mat Fac DSF Fac Machines Accessed 9 | . 4 . 3 1 . 1 Terminals 8 | . 3 . 3 1 . 1 Fabricators . | . . . . . . . Repair Stations . | . . . . . . . Recycling Units 1 | . 1 . . . . . Scanalyzers . | . . . . . . . Garrison Access . | . . . . . . . Total Hacks 18 | . 10 . 6 1 . 1 Successful 8 | . 4 . 2 1 . 1 Failed 10 | . 6 . 4 . . . Catastrophic 3 | . 2 . 1 . . . Database Lockouts . | . . . . . . . Manual . | . . . . . . . Terminals 15 | . 7 . 6 1 . 1 Fabricators . | . . . . . . . Repair Stations . | . . . . . . . Recycling Units 3 | . 3 . . . . . Scanalyzers . | . . . . . . . Garrison Access . | . . . . . . . Terminal Hacks 6 | . 2 . 2 1 . 1 Open DSF 2 | . . . . 1 . 1 Alert Level 2 | . 2 . . . . . Hauler Manifests 2 | . . . 2 . . . Fabricator Hacks . | . . . . . . . Repair Station Hacks . | . . . . . . . Recycling Unit Hacks 2 | . 2 . . . . . Report Inventory 1 | . 1 . . . . . Retrieve Components 1 | . 1 . . . . . Scanalyzer . | . . . . . . . Garrison Access Hacks . | . . . . . . . Unauthorized Hacks . | . . . . . . . Terminals . | . . . . . . . Fabricators . | . . . . . . . Repair Stations . | . . . . . . . Recycling Units . | . . . . . . . Scanalyzers . | . . . . . . . Garrison Access . | . . . . . . . Data Cores Recovered . | . . . . . . . Used . | . . . . . . . Hacking Detections 8 | . 3 . 3 1 . 1 Full Trace Events 4 | . 2 . 2 . . . Feedback Events . | . . . . . . . Feedback Blocked . | . . . . . . . Robot Schematics Acquired . | . . . . . . . Robots Built . | . . . . . . . Authchips . | . . . . . . . Time . | . . . . . . . Total Robot Build Rating . | . . . . . . . Part Schematics Acquired . | . . . . . . . Parts Built . | . . . . . . . Authchips . | . . . . . . . Time . | . . . . . . . Total Part Build Rating . | . . . . . . . Parts Repaired . | . . . . . . . Time . | . . . . . . . Parts Recycled . | . . . . . . . Recycled Matter . | . . . . . . . Retrieved Matter . | . . . . . . . Retrieved Components 3 | . 3 . . . . . Parts Scanalyzed . | . . . . . . . Part Schematics Acquired . | . . . . . . . Parts Damaged . | . . . . . . . Bothacking | -11 -10 -10 -8 -7 -7 -6 ------------ Run | Yrd Mat Sub Mat Fac DSF Fac Used RIF Installer . | . . . . . . . Robots Hacked . | . . . . . . . Non-combat . | . . . . . . . Combat . | . . . . . . . Robot Hacks Applied . | . . . . . . . Relay Couplers Released . | . . . . . . . Fabnet Peak Effective % . | . . . . . . . Robots Rewired . | . . . . . . . Allies Hacked . | . . . . . . . Hacks Repelled . | . . . . . . . Allies | -11 -10 -10 -8 -7 -7 -6 -------- Run | Yrd Mat Sub Mat Fac DSF Fac Total Allies . | . . . . . . . Largest Group . | . . . . . . . Highest-Rated Group . | . . . . . . . Highest-Rated Ally . | . . . . . . . Initial Warlord ECA Mod 9 | . . . . . . 9 Total Orders . | . . . . . . . Ally Attacks . | . . . . . . . Total Damage . | . . . . . . . Kills . | . . . . . . . Allies Corrupted . | . . . . . . . Allies Melted . | . . . . . . . Intel | -11 -10 -10 -8 -7 -7 -6 ------- Run | Yrd Mat Sub Mat Fac DSF Fac Active Infowar (turns) 2786 | 7 1045 619 819 54 87 155 Sensors 2114 | . 390 619 809 54 87 155 Seismic 662 | 7 655 . . . . . ECM 11 | . . . 10 . . 1 Robot Analysis Total . | . . . . . . . Derelict Logs Recovered . | . . . . . . . Drone Launches . | . . . . . . . Drone Recoveries . | . . . . . . . Exploration | -11 -10 -10 -8 -7 -7 -6 ------------- Run | Yrd Mat Sub Mat Fac DSF Fac Turns Passed 3894 | 132 1081 619 1071 54 293 644 Spaces Moved 1578 | 64 405 247 423 30 127 282 Core 15 | 10 . . . . . 5 Treads 1563 | 54 405 247 423 30 127 277 Legs . | . . . . . . . Wheels . | . . . . . . . Hover . | . . . . . . . Flight . | . . . . . . . Fastest Speed 50 | 50 160 240 160 162 162 162 Average Speed 187 | 142 187 240 163 162 169 201 Slowest Speed 700 | 160 240 240 240 162 243 700 Overloaded Moves . | . . . . . . . Propulsion Burnouts . | . . . . . . . Robots Hopped . | . . . . . . . Potential Cave-ins . | . . . . . . . Cave-ins Triggered . | . . . . . . . Exploration Rate (%) 28 | 4 52 20 36 2 78 7 Regions Visited 6 Branch Regions 1 Pre-discovered Areas . | . . . . . . . Known Exits Taken 1 | . . . . 1 . . Unknown Exits Taken 4 | 1 1 1 1 . . . Scrap Searched 3 | . . 3 . . . . Spaces Dug . | . . . . . . . Terrain Destroyed 30 | . . . 18 . . 12 Melee . | . . . . . . . Projectile . | . . . . . . . AOE 30 | . . . 18 . . 12 Terrain Rammed . | . . . . . . . Walls Destroyed . | . . . . . . . Machines Disabled . | . . . . . . . Actions | -11 -10 -10 -8 -7 -7 -6 --------- Run | Yrd Mat Sub Mat Fac DSF Fac Total 2246 | 89 688 260 669 36 157 347 Wait 381 | . 237 . 111 . . 33 Move 1572 | 63 404 246 422 29 126 282 Hop . | . . . . . . . Pick Up 67 | 11 18 3 24 3 2 6 Fast Attach 1 | . 1 . . . . . Attach 33 | 7 . . 12 2 4 8 Detach 4 | . . . 2 . . 2 Swap 15 | . 1 . 9 1 1 3 Drop 25 | . 4 3 16 1 . 1 Fire 139 | 8 19 8 69 . 24 11 Melee . | . . . . . . . Ram . | . . . . . . . Kick . | . . . . . . . Crush 9 | . 4 . 4 . . 1 Escape Stasis . | . . . . . . . Rewire . | . . . . . . . Trap . | . . . . . . . Miscellaneous . | . . . . . . . Route ------- -11/Scrapyard -10/Materials (discovered 2 exits: [*Min] / [*Sub]) -10/Subcaves (discovered 2 exits: *Mat x2) -8/Materials -7/Factory -7/DSF -6/Factory History --------- Turn | Location | Event 8 | -11/Scrapyard | Discovered new exit (range 14) 133 | -11/Scrapyard | Entered Materials 265 | -10/Materials | Discovered new exit (range 15) 318 | -10/Materials | Build established: Mutant 516 | -10/Materials | Discovered new exit (range 8) 1214 | -10/Materials | Entered Subcaves 1331 | -10/Subcaves | A swath of the cavern ceiling suddenly collapsed 1421 | -10/Subcaves | Discovered new exit (range 8) 1754 | -10/Subcaves | Discovered new exit (range 10) 1833 | -10/Subcaves | Entered Materials 1833 | -8/Materials | Evolved 4 slots: Propulsion x1, Utility x3 2851 | -8/Materials | Discovered new exit (range 15) 2904 | -8/Materials | Entered Factory 2904 | -7/Factory | Evolved 2 slots: Propulsion x1, Utility x1 2957 | -7/Factory | Identified exit to DSF 2958 | -7/Factory | Entered DSF 3017 | -7/DSF | Discovered new exit (range 15) 3035 | -7/DSF | Additional patrols routed to DSF 3222 | -7/DSF | Sterilization system engaged 3242 | -7/DSF | Ambient heat levels rising (+10) 3251 | -7/DSF | Entered Factory 3251 | -6/Factory | Evolved 2 slots: Power x1, Weapon x1 3552 | -6/Factory | Build established: Tank 3857 | -6/Factory | System corruption reached 10% 3873 | -6/Factory | Core integrity fell below 50% 3886 | -6/Factory | Core integrity fell below 20% 3895 | -6/Factory | Destroyed by G-50 Soldier with Heavy Laser Last Messages --------------- 03856_ System corrupted: Component data lost. 03858_ R-10 Processor collects Wheel. 03858_ Imp. Medium Armor Plating destroyed. 03860_ U-05 Engineer completes Assembly Bed. 03861_ Enh. Autogun destroyed. 03861_ Imp. Medium Treads destroyed. 03863_ Critical hit (Burn: +37). 03864_ Lightning Gun destroyed. 03866_ Assembly Bed comes online. 03867_ P-60 Hacker resets G-50 Soldier, system corruption cleaned. 03872_ Critical hit (Burn: +37). 03873_ Assembly Bed disabled. 03877_ P-60 Hacker suffers critical hit (Burn). 03877_ Adv. Sensor Array destroyed. 03880_ P-60 Hacker resets G-50 Soldier, system corruption cleaned. 03880_ G-50 Soldier destroyed. 03881_ Critical hit (Burn: +37). 03883_ P-60 Hacker destroyed. Map ----- +----------------------------------------------------+ | ?????????????????????????????????????????????????? | | ?????????????????????????????????????????????????? | | ?????????????????????????????????????????????????? | | ?????????????????????????????????????????????????? | | ??????????????????????????? ????????????????????? | | ??????????????????????????? ????????????????????? | | ????????###############???# "?? ????????????????? | | ????????# #???# "?? "???????????????? | | ????????# #???# ?? ??????????????? | | ????????# #???# """ ""??????????????? | | ????????# #???# """ """?????????????? | | ????????# #???# """ """?????????????? | | ????????# #???# ??????????????? | | ????????# #???# ???????????????? | | ????????# #???# #????????????????? | | ????????# #???# #????????????????? | | ????????# #???# #????????????????? | | ????????# #???# #############????? | | ????????#######+########### # !!! #????? | | ????????????# # """ !!! #????? | | ????????????# t # "G" !!! #????? | | ????????##### [[ !! # " " #????? | | ???????## # [! !! + #????? | | ?####### # """" # #????? | | ?# # """" # #????? | | ?# # @"""" ###############??? | | ?# # """" #??? | | ?# """ # ["""" #??? | | ?# """ # =%" "" #??? | | ?# """ # !! #??? | | ?# # g[ #??? | | ?# """"" # spg##########+##### #??? | | ?# """"" # w * #??????# #??? #??? | | ?# """ # #??????# #?????????? | | ?# # ##?????# """ #?????????? | | ?# """"" # T#?????# """ #?????????? | | ?# """"" # % #?????# """ #?????????? | | ?# """ # R ##?????# #?????????? | | ?# # #??????# """ #?????????? | | ?######+##### ######## """ #?????????? | | ???# # """ #?????????? | | ???# # #?????????? | | ???# # """ #?????????? | | ???# # """ #?????????? | | ???# # """ #?????????? | | ?######+#############+##### # #?????????? | | ?# ## #??# ##+#####?????????? | | ?# """""" ## """" #??# ^ #?????????????? | | ?# """""" ## ""S"" #??# ^ #?????????????? | | ?# """""" ## "" "" #??# #?????????????? | +----------------------------------------------------+ Best States ------------- Heat Dissipation 37 Coolant Potential 50 Energy Generation 15 Energy Capacity 250 Matter Stores 475 Matter Capacity 500 Sight Range 16 Robot Scan Range 16 Terrain Scan Density 10 ECM Strength 2 Armor Coverage 1250 Propulsion Shielding 66 Weapon Shielding 66 Evasion (%) 50 Recoil Reduction 4 Item Schematics ----------------- None Robot Schematics ------------------ None Fabricated ------------ Nothing Repaired ---------- Nothing Alien Tech Used ----------------- None Achievements -------------- None Challenges ------------ None Game ------ Seed NeutrinoPointNanosword Manual? 0 Play Time 00:34:01 Cumulative 17.4 hours Start 2025.07.20 @ 03:47:14 End 2025.07.20 @ 04:23:45 Sessions 1 Manual Loads 0 Difficulty Rogue Special Mode None Game No. 51 Rogue 51 Adventurer 0 Explorer 0 Win Type - Total 0 Types 0/0/0/0/0/0/0/0/0/0 Lore% 18 Gallery% 20 Achievement% 16 Wizard Run 0 Options --------- Layout 1 ASCII 0 Keyboard 0 Movement Mouse Keybinds 0 Fullscreen 1 Font 24/Smallcaps Map View 50x40 Zoom Use 0% Tactical HUD 1 Map Filters NONE Filters NONE Steam 1 RUN: 0a56b26b-2ed1-42bc-9d41-1bad392bd2b1